[Event "Early-Titled-Tuesday-Blitz-March-05-2024"]
[Site "Chess.com"]
[Date "2024.03.05"]
[Round "10"]
[White "Shivananda1964"]
[Black "tarno17"]
[Result "0-1"]
[WhiteElo "2326"]
[BlackElo "2182"]
[TimeControl "180+1"]
[EndTime "9:58:21 PST"]
[Termination "tarno17 won by resignation"]

1. e4 {[%clk 0:02:55.8]} 1... c5 {[%clk 0:02:59.8]} 2. Nf3 {[%clk 0:02:54.7]}
2... e6 {[%clk 0:03:00.1]} 3. c3 {[%clk 0:02:51.1]} 3... d5 {[%clk 0:02:59.9]}
4. exd5 {[%clk 0:02:50.2]} 4... Qxd5 {[%clk 0:03:00.8]} 5. d4 {[%clk 0:02:45.5]}
5... Nf6 {[%clk 0:03:00.9]} 6. g3 {[%clk 0:02:44.8]} 6... cxd4 {[%clk 0:02:58]}
7. cxd4 {[%clk 0:02:44]} 7... Bb4+ {[%clk 0:02:54]} 8. Nc3 {[%clk 0:02:43.7]}
8... Ne4 {[%clk 0:02:35.6]} 9. Qd3 {[%clk 0:02:09.8]} 9... Nc6 {[%clk
0:01:43.2]} 10. Bg2 {[%clk 0:02:06.3]} 10... Nxc3 {[%clk 0:01:26.4]} 11. bxc3
{[%clk 0:02:04.3]} 11... Ba5 {[%clk 0:01:27]} 12. O-O {[%clk 0:02:00.8]} 12...
h6 {[%clk 0:01:15.5]} 13. Ba3 {[%clk 0:01:55.1]} 13... Bd8 {[%clk 0:01:12.6]}
14. Ne5 {[%clk 0:01:53]} 14... Nxe5 {[%clk 0:01:05.2]} 15. Bxd5 {[%clk
0:01:33.4]} 15... Nxd3 {[%clk 0:01:04.9]} 16. Bc4 {[%clk 0:01:32.2]} 16... Nxf2
{[%clk 0:00:45.7]} 17. Rxf2 {[%clk 0:01:29.1]} 17... Be7 {[%clk 0:00:46.4]} 18.
Bb2 {[%clk 0:01:18]} 18... O-O {[%clk 0:00:40.8]} 19. Raf1 {[%clk 0:01:14.5]}
19... Bd7 {[%clk 0:00:40.4]} 20. Bd3 {[%clk 0:01:13.2]} 20... Rac8 {[%clk
0:00:29.1]} 21. c4 {[%clk 0:01:11.7]} 21... Bf6 {[%clk 0:00:29.5]} 22. d5 {[%clk
0:00:53]} 22... Bxb2 {[%clk 0:00:28.2]} 23. Rxb2 {[%clk 0:00:52.1]} 23... exd5
{[%clk 0:00:26.6]} 24. Rxb7 {[%clk 0:00:38]} 24... Bc6 {[%clk 0:00:26.5]} 25.
Rxa7 {[%clk 0:00:36.9]} 25... dxc4 {[%clk 0:00:25.8]} 26. Bf5 {[%clk 0:00:35.2]}
26... Rb8 {[%clk 0:00:22.6]} 27. Rc7 {[%clk 0:00:35]} 27... Bd5 {[%clk
0:00:22.6]} 28. Rd1 {[%clk 0:00:33]} 28... Rb5 {[%clk 0:00:21.3]} 29. a4 {[%clk
0:00:28.2]} 29... Ra5 {[%clk 0:00:18]} 30. Bd7 {[%clk 0:00:24.8]} 30... Rb8
{[%clk 0:00:11.7]} 31. Bb5 {[%clk 0:00:24.2]} 31... Bf3 {[%clk 0:00:02.8]} 32.
Rc1 {[%clk 0:00:23.3]} 32... Be2 {[%clk 0:00:02.6]} 33. Kf2 {[%clk 0:00:23.2]}
33... Bd3 {[%clk 0:00:02.6]} 34. Ke3 {[%clk 0:00:23.4]} 34... Rd8 {[%clk
0:00:02.3]} 35. Kd2 {[%clk 0:00:19.6]} 35... Bf5+ {[%clk 0:00:01.8]} 36. Kc3
{[%clk 0:00:19.5]} 36... Bd3 {[%clk 0:00:02.2]} 37. Kb4 {[%clk 0:00:19.5]} 37...
Raa8 {[%clk 0:00:02.8]} 38. Rc3 {[%clk 0:00:19.1]} 38... Rab8 {[%clk 0:00:02.9]}
39. a5 {[%clk 0:00:18.4]} 39... Rd5 {[%clk 0:00:03.2]} 40. Rc5 {[%clk
0:00:17.9]} 40... Rd7 {[%clk 0:00:03.2]} 41. a6 {[%clk 0:00:17.5]} 41... Ra7
{[%clk 0:00:03.8]} 42. Ka5 {[%clk 0:00:17.7]} 42... Re7 {[%clk 0:00:03.5]} 43.
Rc6 {[%clk 0:00:17.5]} 43... Re2 {[%clk 0:00:03.3]} 44. Kb4 {[%clk 0:00:14.6]}
44... Rb2+ {[%clk 0:00:03.7]} 45. Kc5 {[%clk 0:00:14.4]} 45... R2xb5+ {[%clk
0:00:04.2]} 46. Kd6 {[%clk 0:00:14.4]} 46... Ra5 {[%clk 0:00:04.5]} 47. Kc7
{[%clk 0:00:12.9]} 47... Ra8 {[%clk 0:00:04.1]} 48. Kb7 {[%clk 0:00:13]} 48...
Re8 {[%clk 0:00:04.3]} 49. a7 {[%clk 0:00:12.8]} 49... Re7+ {[%clk 0:00:04.9]}
0-1

[Event "Early-Titled-Tuesday-Blitz-March-05-2024"]
[Site "Chess.com"]
[Date "2024.03.05"]
[Round "10"]
[White "DKmirl"]
[Black "AlexandraSamaganova"]
[Result "0-1"]
[WhiteElo "2309"]
[BlackElo "2298"]
[TimeControl "180+1"]
[EndTime "9:58:21 PST"]
[Termination "AlexandraSamaganova won on time"]

1. d4 {[%clk 0:03:00.9]} 1... Nf6 {[%clk 0:02:59.3]} 2. Nf3 {[%clk 0:02:59.2]}
2... e6 {[%clk 0:02:56.6]} 3. g3 {[%clk 0:02:59.8]} 3... b6 {[%clk 0:02:56.1]}
4. Bg2 {[%clk 0:03:00.3]} 4... Bb7 {[%clk 0:02:55.1]} 5. O-O {[%clk 0:03:01]}
5... Be7 {[%clk 0:02:54.9]} 6. c4 {[%clk 0:03:00.1]} 6... O-O {[%clk 0:02:54.4]}
7. Nc3 {[%clk 0:03:00.5]} 7... Ne4 {[%clk 0:02:53.8]} 8. Bd2 {[%clk 0:03:00.7]}
8... Nxc3 {[%clk 0:02:52.7]} 9. Bxc3 {[%clk 0:03:01.6]} 9... Be4 {[%clk
0:02:50.4]} 10. b4 {[%clk 0:03:01.7]} 10... d6 {[%clk 0:02:48.2]} 11. a4 {[%clk
0:03:01.2]} 11... Nd7 {[%clk 0:02:44.1]} 12. a5 {[%clk 0:02:44.5]} 12... f5
{[%clk 0:02:32.5]} 13. Qb3 {[%clk 0:02:11.8]} 13... Nf6 {[%clk 0:02:26.5]} 14.
Rad1 {[%clk 0:01:42.4]} 14... Qd7 {[%clk 0:02:12.7]} 15. b5 {[%clk 0:01:37.5]}
15... h6 {[%clk 0:02:03.8]} 16. c5 {[%clk 0:00:57]} 16... Bd5 {[%clk 0:01:50.5]}
17. Qb2 {[%clk 0:00:53.4]} 17... bxc5 {[%clk 0:01:39.8]} 18. dxc5 {[%clk
0:00:53.6]} 18... Rfb8 {[%clk 0:01:20.6]} 19. c6 {[%clk 0:00:43.4]} 19... Qe8
{[%clk 0:01:17.3]} 20. Nh4 {[%clk 0:00:08.8]} 20... Bxg2 {[%clk 0:00:51.8]} 21.
Nxg2 {[%clk 0:00:08.6]} 21... Ne4 {[%clk 0:00:29.2]} 22. Rb1 {[%clk 0:00:08.6]}
22... e5 {[%clk 0:00:18.8]} 23. Qa2+ {[%clk 0:00:07.7]} 23... Kh8 {[%clk
0:00:17.8]} 24. Be1 {[%clk 0:00:07.2]} 24... Nc5 {[%clk 0:00:13.7]} 25. Bb4
{[%clk 0:00:06.5]} 25... Rxb5 {[%clk 0:00:09.1]} 26. Bxc5 {[%clk 0:00:02.9]}
26... Rxc5 {[%clk 0:00:09.2]} 27. Ne3 {[%clk 0:00:03.8]} 27... f4 {[%clk
0:00:07.9]} 28. Nd5 {[%clk 0:00:03.8]} 28... Bd8 {[%clk 0:00:05.8]} 29. Rfc1
{[%clk 0:00:02.8]} 29... Qxc6 {[%clk 0:00:05.9]} 30. Nb4 {[%clk 0:00:03]} 30...
Qe8 {[%clk 0:00:04.3]} 31. Rxc5 {[%clk 0:00:02.7]} 31... dxc5 {[%clk 0:00:05.2]}
32. Nd3 {[%clk 0:00:03.3]} 32... fxg3 {[%clk 0:00:05.5]} 33. hxg3 {[%clk
0:00:03.1]} 33... e4 {[%clk 0:00:05.8]} 34. Nxc5 {[%clk 0:00:03.2]} 34... Bf6
{[%clk 0:00:06]} 35. Nxe4 {[%clk 0:00:03.1]} 35... Qxe4 {[%clk 0:00:05.6]} 36.
Rd1 {[%clk 0:00:02]} 36... Re8 {[%clk 0:00:05.5]} 37. e3 {[%clk 0:00:01.6]}
37... Qf3 {[%clk 0:00:05.5]} 38. Rf1 {[%clk 0:00:01.9]} 38... Be5 {[%clk
0:00:05.5]} 39. Qa4 {[%clk 0:00:02.5]} 39... Qf7 {[%clk 0:00:05.2]} 40. Qb5
{[%clk 0:00:01.9]} 40... Bd6 {[%clk 0:00:05.5]} 41. Qc6 {[%clk 0:00:02]} 41...
Rf8 {[%clk 0:00:05.8]} 42. Qb7 {[%clk 0:00:02.2]} 42... Qf3 {[%clk 0:00:05.6]}
43. Qxa7 {[%clk 0:00:02]} 43... h5 {[%clk 0:00:04.8]} 44. Qa6 {[%clk 0:00:01.2]}
44... h4 {[%clk 0:00:04.8]} 0-1

[Event "Early-Titled-Tuesday-Blitz-March-05-2024"]
[Site "Chess.com"]
[Date "2024.03.05"]
[Round "10"]
[White "alexrustemov"]
[Black "littlepinkyboy"]
[Result "1-0"]
[WhiteElo "2813"]
[BlackElo "2672"]
[TimeControl "180+1"]
[EndTime "9:58:22 PST"]
[Termination "alexrustemov won by resignation"]

1. d4 {[%clk 0:03:00.2]} 1... d5 {[%clk 0:02:59]} 2. c4 {[%clk 0:03:00.4]} 2...
c6 {[%clk 0:02:57.7]} 3. Nc3 {[%clk 0:03:00.7]} 3... Nf6 {[%clk 0:02:55.1]} 4.
e3 {[%clk 0:03:01.1]} 4... e6 {[%clk 0:02:53.5]} 5. Nf3 {[%clk 0:03:01.5]} 5...
Nbd7 {[%clk 0:02:53.9]} 6. Qc2 {[%clk 0:03:02.1]} 6... Bd6 {[%clk 0:02:49.9]} 7.
Bd2 {[%clk 0:03:02.6]} 7... O-O {[%clk 0:02:49.2]} 8. O-O-O {[%clk 0:03:03.1]}
8... e5 {[%clk 0:02:47.2]} 9. cxd5 {[%clk 0:03:02.5]} 9... cxd5 {[%clk
0:02:46.1]} 10. Nb5 {[%clk 0:03:02.9]} 10... Bb8 {[%clk 0:02:44.5]} 11. dxe5
{[%clk 0:03:03]} 11... Nxe5 {[%clk 0:02:44.6]} 12. Bc3 {[%clk 0:03:03.6]} 12...
Ng6 {[%clk 0:02:24.4]} 13. Kb1 {[%clk 0:02:57.9]} 13... Ne4 {[%clk 0:02:07.7]}
14. Bd3 {[%clk 0:02:52.1]} 14... Bf5 {[%clk 0:02:01]} 15. Nbd4 {[%clk
0:02:47.5]} 15... Nxc3+ {[%clk 0:01:50.9]} 16. Qxc3 {[%clk 0:02:47.4]} 16...
Bxd3+ {[%clk 0:01:48.9]} 17. Rxd3 {[%clk 0:02:46.7]} 17... Qf6 {[%clk
0:01:38.8]} 18. Rhd1 {[%clk 0:02:37.5]} 18... Ne5 {[%clk 0:01:28.8]} 19. Nxe5
{[%clk 0:02:36.7]} 19... Bxe5 {[%clk 0:01:29.7]} 20. Qd2 {[%clk 0:02:36.9]}
20... Rad8 {[%clk 0:01:10.1]} 21. Nf3 {[%clk 0:02:35.8]} 21... Bc7 {[%clk
0:01:04.9]} 22. a3 {[%clk 0:02:19.9]} 22... Qg6 {[%clk 0:00:58.7]} 23. g3 {[%clk
0:02:17.8]} 23... Rd6 {[%clk 0:00:58]} 24. Ka2 {[%clk 0:02:15.3]} 24... Rfd8
{[%clk 0:00:54.3]} 25. Nd4 {[%clk 0:02:07.1]} 25... Bb6 {[%clk 0:00:53.6]} 26.
Ne2 {[%clk 0:01:55.3]} 26... Qe4 {[%clk 0:00:49.8]} 27. Nc3 {[%clk 0:01:49.5]}
27... Qc4+ {[%clk 0:00:43.2]} 28. b3 {[%clk 0:01:49.6]} 28... Qc6 {[%clk
0:00:41.4]} 29. Rxd5 {[%clk 0:01:39.6]} 29... Rxd5 {[%clk 0:00:24.6]} 30. Nxd5
{[%clk 0:01:40.5]} 30... Kf8 {[%clk 0:00:18.2]} 31. e4 {[%clk 0:01:31.9]} 31...
Rc8 {[%clk 0:00:13.5]} 32. Kb2 {[%clk 0:01:27.3]} 32... Ba5 {[%clk 0:00:06.6]}
33. b4 {[%clk 0:01:23.7]} 33... Bc7 {[%clk 0:00:07]} 34. Nxc7 {[%clk 0:01:22.4]}
34... Qxc7 {[%clk 0:00:06.3]} 35. Qd6+ {[%clk 0:01:22]} 35... Qxd6 {[%clk
0:00:06.2]} 36. Rxd6 {[%clk 0:01:22.7]} 36... Ke7 {[%clk 0:00:06.3]} 37. Rd5
{[%clk 0:01:21.9]} 37... a6 {[%clk 0:00:06]} 38. f3 {[%clk 0:01:11.6]} 38... f6
{[%clk 0:00:06.2]} 39. h4 {[%clk 0:01:11]} 39... g6 {[%clk 0:00:05.3]} 40. h5
{[%clk 0:01:10]} 40... Ke6 {[%clk 0:00:05.1]} 41. h6 {[%clk 0:01:07.8]} 41...
Ke7 {[%clk 0:00:05.1]} 42. f4 {[%clk 0:01:05.3]} 42... Rc4 {[%clk 0:00:04.9]}
43. Rc5 {[%clk 0:01:02.1]} 43... Rxc5 {[%clk 0:00:02.3]} 44. bxc5 {[%clk
0:01:02]} 44... Kd7 {[%clk 0:00:02.5]} 45. Kc3 {[%clk 0:01:02.1]} 45... Kc6
{[%clk 0:00:02.5]} 46. Kd4 {[%clk 0:01:02]} 46... Kc7 {[%clk 0:00:02.5]} 47. Kd5
{[%clk 0:01:01.9]} 47... Kd7 {[%clk 0:00:03]} 48. e5 {[%clk 0:00:53.4]} 48...
Ke7 {[%clk 0:00:02.9]} 49. e6 {[%clk 0:00:48.6]} 49... Kd8 {[%clk 0:00:01.9]}
50. Kd6 {[%clk 0:00:47.8]} 50... Ke8 {[%clk 0:00:02.8]} 51. Kc7 {[%clk
0:00:46.1]} 51... Ke7 {[%clk 0:00:03.7]} 52. Kxb7 {[%clk 0:00:46.1]} 52... Kxe6
{[%clk 0:00:04.6]} 53. c6 {[%clk 0:00:46.6]} 53... Kf5 {[%clk 0:00:05.5]} 54. c7
{[%clk 0:00:46.7]} 54... Kg4 {[%clk 0:00:06.4]} 55. c8=Q+ {[%clk 0:00:47]} 55...
Kxg3 {[%clk 0:00:07.3]} 56. Qc7 {[%clk 0:00:45.4]} 56... Kg4 {[%clk 0:00:05.2]}
57. Qxh7 {[%clk 0:00:45]} 57... Kh5 {[%clk 0:00:06.1]} 58. Qg7 {[%clk
0:00:44.6]} 58... g5 {[%clk 0:00:07]} 59. fxg5 {[%clk 0:00:44.4]} 1-0

[Event "Early-Titled-Tuesday-Blitz-March-05-2024"]
[Site "Chess.com"]
[Date "2024.03.05"]
[Round "10"]
[White "amanjazu"]
[Black "atbenina64"]
[Result "0-1"]
[WhiteElo "2534"]
[BlackElo "2723"]
[TimeControl "180+1"]
[EndTime "9:58:26 PST"]
[Termination "atbenina64 won by checkmate"]

1. g3 {[%clk 0:03:00.9]} 1... e5 {[%clk 0:02:53.2]} 2. Bg2 {[%clk 0:03:01.8]}
2... Nf6 {[%clk 0:02:53.8]} 3. c4 {[%clk 0:03:01.1]} 3... c6 {[%clk 0:02:54.4]}
4. Nc3 {[%clk 0:03:01.7]} 4... d5 {[%clk 0:02:53.9]} 5. d4 {[%clk 0:03:00.7]}
5... e4 {[%clk 0:02:51.6]} 6. f3 {[%clk 0:03:00.1]} 6... Bb4 {[%clk 0:02:36.1]}
7. Bg5 {[%clk 0:02:55.2]} 7... h6 {[%clk 0:02:26]} 8. Bxf6 {[%clk 0:02:52.9]}
8... Qxf6 {[%clk 0:02:26.9]} 9. fxe4 {[%clk 0:02:53.6]} 9... dxe4 {[%clk
0:02:16.5]} 10. Bxe4 {[%clk 0:02:53.6]} 10... O-O {[%clk 0:02:16.6]} 11. Nf3
{[%clk 0:02:53.7]} 11... Bh3 {[%clk 0:02:17.1]} 12. Qd3 {[%clk 0:02:53.3]} 12...
Re8 {[%clk 0:02:09.6]} 13. O-O-O {[%clk 0:02:52.3]} 13... Bxc3 {[%clk
0:01:58.1]} 14. bxc3 {[%clk 0:02:53.2]} 14... Na6 {[%clk 0:01:48.1]} 15. Ne5
{[%clk 0:02:42.5]} 15... Nc5 {[%clk 0:01:24.6]} 16. Qc2 {[%clk 0:01:24.7]} 16...
Nxe4 {[%clk 0:01:09.7]} 17. Qxe4 {[%clk 0:01:25.6]} 17... Qe7 {[%clk 0:01:10.5]}
18. Qc2 {[%clk 0:01:15.2]} 18... f6 {[%clk 0:01:06.3]} 19. Ng6 {[%clk
0:01:12.1]} 19... Qa3+ {[%clk 0:00:58.7]} 20. Qb2 {[%clk 0:00:21.7]} 20... Qxb2+
{[%clk 0:00:58.1]} 21. Kxb2 {[%clk 0:00:22.6]} 21... Rxe2+ {[%clk 0:00:58.7]}
22. Ka3 {[%clk 0:00:21.3]} 22... Re3 {[%clk 0:00:41.5]} 23. Kb3 {[%clk
0:00:21.7]} 23... Rae8 {[%clk 0:00:21.1]} 24. Nf4 {[%clk 0:00:21.5]} 24... Bf5
{[%clk 0:00:18.5]} 25. d5 {[%clk 0:00:20.8]} 25... g5 {[%clk 0:00:14.8]} 26. Nh5
{[%clk 0:00:20.5]} 26... Kf7 {[%clk 0:00:13.4]} 27. Rhf1 {[%clk 0:00:20.8]}
27... R8e5 {[%clk 0:00:10]} 28. d6 {[%clk 0:00:17.2]} 28... Kg6 {[%clk
0:00:04.5]} 29. Rxf5 {[%clk 0:00:14.3]} 29... Rxf5 {[%clk 0:00:02.3]} 30. d7
{[%clk 0:00:11.4]} 30... Rf2 {[%clk 0:00:02]} 31. d8=Q {[%clk 0:00:10.3]} 31...
Ree2 {[%clk 0:00:02.7]} 32. Qd3+ {[%clk 0:00:10.1]} 32... Kxh5 {[%clk
0:00:03.3]} 33. g4+ {[%clk 0:00:10.1]} 33... Kxg4 {[%clk 0:00:03.3]} 34. Rg1+
{[%clk 0:00:10.5]} 34... Kh5 {[%clk 0:00:03.1]} 35. Qh3+ {[%clk 0:00:10.3]}
35... Kg6 {[%clk 0:00:03.8]} 36. Qd3+ {[%clk 0:00:10.8]} 36... Kh5 {[%clk
0:00:04.1]} 37. Rb1 {[%clk 0:00:11.1]} 37... Rxh2 {[%clk 0:00:03.6]} 38. Qd7
{[%clk 0:00:10.7]} 38... g4 {[%clk 0:00:02.9]} 39. Qxb7 {[%clk 0:00:11.3]} 39...
g3 {[%clk 0:00:03.2]} 40. Qxc6 {[%clk 0:00:12]} 40... g2 {[%clk 0:00:02.7]} 41.
Qf3+ {[%clk 0:00:12.6]} 41... Kh4 {[%clk 0:00:02.4]} 42. Qxe2 {[%clk 0:00:13.1]}
42... g1=Q {[%clk 0:00:02.8]} 43. Qe4+ {[%clk 0:00:05.9]} 43... Qg4 {[%clk
0:00:03]} 44. Qe7 {[%clk 0:00:06.1]} 44... Qg5 {[%clk 0:00:02.5]} 45. c5 {[%clk
0:00:06.5]} 45... Qd5+ {[%clk 0:00:02.4]} 46. c4 {[%clk 0:00:06.1]} 46... Qd3+
{[%clk 0:00:02.9]} 47. Kb4 {[%clk 0:00:06.3]} 47... Qxb1+ {[%clk 0:00:03.2]} 48.
Ka5 {[%clk 0:00:06.8]} 48... Rxa2# {[%clk 0:00:04.1]} 0-1

[Event "Early-Titled-Tuesday-Blitz-March-05-2024"]
[Site "Chess.com"]
[Date "2024.03.05"]
[Round "10"]
[White "Shuvalov"]
[Black "AsaHoffmann"]
[Result "1-0"]
[WhiteElo "2539"]
[BlackElo "2412"]
[TimeControl "180+1"]
[EndTime "9:58:26 PST"]
[Termination "Shuvalov won on time"]

1. d4 {[%clk 0:03:00.9]} 1... Nf6 {[%clk 0:02:53.9]} 2. c4 {[%clk 0:03:00.9]}
2... c5 {[%clk 0:02:53.4]} 3. Nf3 {[%clk 0:02:58.6]} 3... cxd4 {[%clk
0:02:53.1]} 4. Nxd4 {[%clk 0:02:59.5]} 4... e5 {[%clk 0:02:53]} 5. Nb5 {[%clk
0:02:58]} 5... d5 {[%clk 0:02:52.7]} 6. cxd5 {[%clk 0:02:58]} 6... Bb4+ {[%clk
0:02:52.1]} 7. N5c3 {[%clk 0:02:55.8]} 7... O-O {[%clk 0:02:50.3]} 8. e4 {[%clk
0:02:52.6]} 8... Nxe4 {[%clk 0:02:47.5]} 9. Bd3 {[%clk 0:02:49.6]} 9... Nf6
{[%clk 0:02:37.4]} 10. O-O {[%clk 0:02:48.1]} 10... Re8 {[%clk 0:02:36.9]} 11.
Bg5 {[%clk 0:02:47.3]} 11... h6 {[%clk 0:02:33]} 12. Bh4 {[%clk 0:02:43.7]}
12... Nbd7 {[%clk 0:02:29.4]} 13. Qc2 {[%clk 0:02:18.2]} 13... a6 {[%clk
0:02:19.7]} 14. Rd1 {[%clk 0:02:16.5]} 14... b5 {[%clk 0:02:17.9]} 15. a4 {[%clk
0:02:11.5]} 15... bxa4 {[%clk 0:02:08.4]} 16. Rxa4 {[%clk 0:02:05.4]} 16... a5
{[%clk 0:02:08.4]} 17. Bb5 {[%clk 0:02:01.5]} 17... Rb8 {[%clk 0:01:44.3]} 18.
Bc6 {[%clk 0:01:57.5]} 18... Bd6 {[%clk 0:01:21.6]} 19. Nb5 {[%clk 0:01:50.5]}
19... Nb6 {[%clk 0:01:18.1]} 20. Bxf6 {[%clk 0:01:42.2]} 20... Qxf6 {[%clk
0:01:17.1]} 21. Bxe8 {[%clk 0:01:39.1]} 21... Nxa4 {[%clk 0:01:15.5]} 22. Qxa4
{[%clk 0:01:35.9]} 22... Bc5 {[%clk 0:00:55.6]} 23. Rf1 {[%clk 0:01:30.2]} 23...
Bf5 {[%clk 0:00:52.8]} 24. N5c3 {[%clk 0:01:16.1]} 24... Bd3 {[%clk 0:00:48.2]}
25. Nd2 {[%clk 0:00:48.1]} 25... Bxf1 {[%clk 0:00:44.4]} 26. Nde4 {[%clk
0:00:48.4]} 26... Qb6 {[%clk 0:00:31.6]} 27. Kxf1 {[%clk 0:00:43.9]} 27... Bd4
{[%clk 0:00:29.2]} 28. Qd7 {[%clk 0:00:39.2]} 28... Qb7 {[%clk 0:00:25.7]} 29.
Bxf7+ {[%clk 0:00:33.8]} 29... Kh8 {[%clk 0:00:25.6]} 30. Qg4 {[%clk 0:00:29.9]}
30... Qxf7 {[%clk 0:00:22.4]} 31. d6 {[%clk 0:00:21.6]} 31... Rd8 {[%clk
0:00:21.6]} 32. Qg3 {[%clk 0:00:16]} 32... Qe6 {[%clk 0:00:18.6]} 33. Ke2 {[%clk
0:00:13.8]} 33... a4 {[%clk 0:00:17.3]} 34. h3 {[%clk 0:00:12.4]} 34... a3
{[%clk 0:00:17.3]} 35. bxa3 {[%clk 0:00:12.4]} 35... Rxd6 {[%clk 0:00:16.9]} 36.
Nxd6 {[%clk 0:00:12.1]} 36... Qxd6 {[%clk 0:00:16.8]} 37. Ne4 {[%clk 0:00:12]}
37... Qa6+ {[%clk 0:00:15.5]} 38. Qd3 {[%clk 0:00:12]} 38... Qa5 {[%clk
0:00:13.9]} 39. Kf3 {[%clk 0:00:11.7]} 39... Qe1 {[%clk 0:00:10.5]} 40. g3
{[%clk 0:00:10.9]} 40... Qh1+ {[%clk 0:00:09.9]} 41. Ke2 {[%clk 0:00:10.8]}
41... Qxh3 {[%clk 0:00:09.7]} 42. Qf3 {[%clk 0:00:10.5]} 42... Qd7 {[%clk
0:00:08.3]} 43. Qf8+ {[%clk 0:00:09.2]} 43... Kh7 {[%clk 0:00:07.8]} 44. Qf3
{[%clk 0:00:08.6]} 44... Qe7 {[%clk 0:00:07.1]} 45. Qd3 {[%clk 0:00:08.4]} 45...
g6 {[%clk 0:00:06.7]} 46. Kf3 {[%clk 0:00:07.6]} 46... Qf7+ {[%clk 0:00:05.6]}
47. Kg2 {[%clk 0:00:07.9]} 47... Kg7 {[%clk 0:00:05.5]} 48. a4 {[%clk
0:00:07.7]} 48... Qd5 {[%clk 0:00:04]} 49. Qf3 {[%clk 0:00:07.4]} 49... Qc6
{[%clk 0:00:02.9]} 50. a5 {[%clk 0:00:07]} 1-0

[Event "Early-Titled-Tuesday-Blitz-March-05-2024"]
[Site "Chess.com"]
[Date "2024.03.05"]
[Round "10"]
[White "JohnWhite1952"]
[Black "ChessBliss09"]
[Result "0-1"]
[WhiteElo "1998"]
[BlackElo "2207"]
[TimeControl "180+1"]
[EndTime "9:58:26 PST"]
[Termination "ChessBliss09 won on time"]

1. e4 {[%clk 0:02:58.3]} 1... e5 {[%clk 0:02:59.7]} 2. Nf3 {[%clk 0:02:57.4]}
2... Nc6 {[%clk 0:02:59.7]} 3. Bb5 {[%clk 0:02:56.6]} 3... Nf6 {[%clk
0:02:59.5]} 4. d3 {[%clk 0:02:54.7]} 4... Bc5 {[%clk 0:02:58.4]} 5. O-O {[%clk
0:02:50]} 5... d6 {[%clk 0:02:56.1]} 6. c3 {[%clk 0:02:48.2]} 6... O-O {[%clk
0:02:55.5]} 7. d4 {[%clk 0:02:45.4]} 7... exd4 {[%clk 0:02:51.9]} 8. cxd4 {[%clk
0:02:44.8]} 8... Bb6 {[%clk 0:02:52]} 9. Nc3 {[%clk 0:02:39.5]} 9... Bg4 {[%clk
0:02:50.7]} 10. Bxc6 {[%clk 0:02:26.2]} 10... bxc6 {[%clk 0:02:47.6]} 11. Be3
{[%clk 0:02:21.1]} 11... Re8 {[%clk 0:02:47.8]} 12. h3 {[%clk 0:02:18.2]} 12...
Bh5 {[%clk 0:02:46.1]} 13. Qd3 {[%clk 0:01:44.4]} 13... Qd7 {[%clk 0:02:17.1]}
14. Kh2 {[%clk 0:01:22.9]} 14... Bg6 {[%clk 0:02:13.2]} 15. Nd2 {[%clk
0:01:20.2]} 15... d5 {[%clk 0:02:12.6]} 16. f3 {[%clk 0:01:14.4]} 16... dxe4
{[%clk 0:02:10]} 17. fxe4 {[%clk 0:01:12.5]} 17... Rad8 {[%clk 0:02:01.8]} 18.
Rad1 {[%clk 0:00:43.7]} 18... Bxd4 {[%clk 0:01:53.8]} 19. Nf3 {[%clk 0:00:35]}
19... Bxe3 {[%clk 0:01:27.6]} 20. Qxe3 {[%clk 0:00:32.3]} 20... Qe7 {[%clk
0:01:26.4]} 21. e5 {[%clk 0:00:29]} 21... Nd5 {[%clk 0:01:22.9]} 22. Nxd5 {[%clk
0:00:25.3]} 22... cxd5 {[%clk 0:01:21.1]} 23. Qxa7 {[%clk 0:00:25.3]} 23... Be4
{[%clk 0:01:18.6]} 24. Rc1 {[%clk 0:00:19.5]} 24... Bxf3 {[%clk 0:01:17.4]} 25.
Rxf3 {[%clk 0:00:17.4]} 25... Qxe5+ {[%clk 0:01:17.4]} 26. Kh1 {[%clk
0:00:16.1]} 26... Re7 {[%clk 0:01:11.2]} 27. Rfc3 {[%clk 0:00:14.2]} 27... c6
{[%clk 0:00:52.6]} 28. Qb6 {[%clk 0:00:12.8]} 28... Rde8 {[%clk 0:00:46.1]} 29.
Qxc6 {[%clk 0:00:11]} 29... d4 {[%clk 0:00:45.7]} 30. Rc5 {[%clk 0:00:09.5]}
30... Qe3 {[%clk 0:00:44.3]} 31. Qf3 {[%clk 0:00:08.2]} 31... Qxf3 {[%clk
0:00:33.6]} 32. gxf3 {[%clk 0:00:08]} 32... h6 {[%clk 0:00:34.1]} 33. Rc7 {[%clk
0:00:07.1]} 33... Re1+ {[%clk 0:00:33]} 34. Rxe1 {[%clk 0:00:06.8]} 34... Rxe1+
{[%clk 0:00:33.4]} 35. Kg2 {[%clk 0:00:07]} 35... Re2+ {[%clk 0:00:33.8]} 36.
Kg3 {[%clk 0:00:06.8]} 36... Rxb2 {[%clk 0:00:34.7]} 37. Rd7 {[%clk 0:00:06.2]}
37... Rxa2 {[%clk 0:00:30]} 38. Rxd4 {[%clk 0:00:06.5]} 38... Kh7 {[%clk
0:00:30.5]} 39. Kg4 {[%clk 0:00:06.5]} 39... Rg2+ {[%clk 0:00:28.8]} 40. Kf4
{[%clk 0:00:06.4]} 40... g5+ {[%clk 0:00:25.9]} 41. Ke3 {[%clk 0:00:05.6]} 41...
Rh2 {[%clk 0:00:24.6]} 42. Rd7 {[%clk 0:00:05.2]} 42... Kg7 {[%clk 0:00:24]} 43.
Rd4 {[%clk 0:00:04.2]} 43... Rxh3 {[%clk 0:00:24.1]} 44. Rg4 {[%clk 0:00:03.9]}
44... f5 {[%clk 0:00:19.9]} 45. Rg2 {[%clk 0:00:03.6]} 45... Kg6 {[%clk
0:00:19.8]} 46. Ke2 {[%clk 0:00:02.2]} 46... Kh5 {[%clk 0:00:19.3]} 47. Rg1
{[%clk 0:00:02.2]} 47... Kh4 {[%clk 0:00:19.2]} 48. Kf2 {[%clk 0:00:01.7]} 48...
Rh2+ {[%clk 0:00:17.9]} 0-1